bitfinex/quotes_BTCUSD_20240101
["timestamp","ask_amount","ask_price","bid_price","bid_amount"]
[1704139970858,0.07573765,43745.0,43742.0,0.3006]
[1704139971669,0.12313765,43745.0,43742.0,0.3006]
[1704139971886,0.07573765,43745.0,43742.0,0.3006]
[1704139972117,0.07773765,43745.0,43742.0,0.3186]
[1704139972318,0.07773765,43745.0,43742.0,0.3096]
[1704139972319,0.12197765,43745.0,43742.0,0.3096]
[1704139972731,0.30895476,43744.0,43742.0,0.3096]
[1704139973029,0.36433476,43744.0,43742.0,0.3096]
[1704139973237,0.27573765,43743.0,43742.0,0.3096]
[1704139973410,0.07573765,43742.0,43737.0,0.2869]
[1704139973767,0.40895476,43742.0,43737.0,0.2869]
[1704139973968,0.07573765,43741.0,43737.0,0.2869]
[1704139975208,0.23321711,43742.0,43737.0,0.2879]
[1704139975376,0.23321711,43742.0,43737.0,0.2899]
[1704139976006,0.18258497,43751.0,43737.0,0.31416235]
[1704139976007,0.17573765,43749.0,43737.0,0.31416235]
[1704139976259,0.23321711,43748.0,43738.0,0.02426235]
[1704139976490,0.1,43750.0,43742.0,0.02426235]
[1704139976491,0.07573765,43750.0,43742.0,0.02426235]
[1704139976668,0.30895476,43750.0,43742.0,0.02426235]
[1704139976878,0.30895476,43750.0,43742.0,0.31336235]
[1704139977314,0.01,43748.0,43744.0,0.02426235]
[1704139977532,0.019,43748.0,43747.0,0.02426235]
[1704139977735,0.009,43748.0,43747.0,0.02426235]
[1704139977940,0.004,43750.0,43747.0,0.02426235]
[1704139978174,0.07573765,43755.0,43747.0,0.02426235]
[1704139978388,0.005,43750.0,43747.0,0.02426235]
[1704139978597,0.005,43750.0,43743.0,0.3]
[1704139978598,0.005,43750.0,43744.0,0.005]
[1704139979021,0.005,43750.0,43746.0,0.36574]
[1704139979227,0.005,43750.0,43747.0,0.02426235]
[1704139979434,0.005,43750.0,43746.0,0.36574]
[1704139979631,0.005,43750.0,43747.0,0.02426235]
[1704139980045,0.30895476,43755.0,43747.0,0.009]
[1704139980258,0.45605476,43755.0,43747.0,0.02826235]
[1704139980469,0.17573765,43753.0,43747.0,0.004]
[1704139980679,0.40895476,43753.0,43747.0,0.004]
[1704139980891,0.40895476,43753.0,43748.0,0.01051313]
[1704139980892,0.45473476,43753.0,43748.0,0.01051313]
[1704139981097,0.40895476,43753.0,43748.0,0.01051313]
[1704139981541,0.40895476,43753.0,43747.0,0.001]
[1704139981760,0.41395476,43753.0,43749.0,0.01050129]
[1704139981969,0.41395476,43753.0,43747.0,0.001]
[1704139981970,0.005,43753.0,43748.0,0.01051313]
[1704139982181,0.005,43753.0,43747.0,0.001]
[1704139982418,0.005,43753.0,43749.0,0.01050129]
[1704139982635,0.005,43753.0,43748.0,0.01051313]
[1704139982862,0.17573765,43755.0,43750.0,0.01048945]
[1704139983096,0.007,43753.0,43749.0,0.01050129]
[1704139983305,0.014,43753.0,43751.0,0.01047762]
[1704139983514,0.007,43753.0,43750.0,0.01048945]
[1704139983729,0.007,43753.0,43752.0,0.01046578]
[1704139983730,0.014,43753.0,43752.0,0.01046578]
[1704139983940,0.007,43753.0,43752.0,0.02426235]
[1704139984159,0.08013735,43764.0,43752.0,0.38995935]
[1704139984372,0.08013735,43764.0,43756.0,0.02426235]
[1704139984794,0.08013735,43764.0,43757.0,0.01040662]
[1704139985958,0.07573765,43761.0,43757.0,0.01040662]
[1704139986172,0.07573765,43761.0,43754.0,0.34952231]
[1704139986379,0.07573765,43761.0,43758.0,0.01039479]
[1704139986601,0.07573765,43761.0,43754.0,0.34952231]
[1704139986815,0.50895476,43760.0,43759.0,0.01038295]
[1704139987036,0.50895476,43760.0,43754.0,0.04952231]
[1704139987037,0.17573765,43757.0,43754.0,0.04952231]
[1704139987251,0.40895476,43757.0,43754.0,0.04952231]
[1704139987458,0.40895476,43757.0,43750.0,0.3]
[1704139987659,0.40895476,43757.0,43755.0,0.01390704]
[1704139987864,0.40895476,43757.0,43750.0,0.3]
[1704139988298,0.40895476,43757.0,43751.0,0.01387613]
[1704139988900,0.41095476,43757.0,43751.0,0.01387613]
[1704139989336,0.002,43757.0,43751.0,0.01387613]
[1704139989769,0.01,43757.0,43755.0,0.001]
[1704139990181,0.08573765,43757.0,43756.0,0.01379724]
[1704139990395,0.07573765,43757.0,43751.0,0.001]
[1704139990605,0.09873765,43757.0,43751.0,0.002]
[1704139990849,0.09873765,43757.0,43752.0,0.01386035]
[1704139991061,0.07573765,43757.0,43752.0,0.01386035]
[1704139991276,0.09573765,43757.0,43755.0,0.002]
[1704139991480,0.08573765,43757.0,43755.0,0.001]
[1704139991692,0.08573765,43757.0,43756.0,0.40372359]
[1704139991693,0.01,43757.0,43756.0,0.40372359]
[1704139991901,0.02,43757.0,43756.0,0.70372359]
[1704139992555,0.01,43757.0,43756.0,0.70372359]
[1704139992768,0.019,43757.0,43756.0,0.70372359]
[1704139992984,0.009,43757.0,43756.0,0.70372359]
[1704139993487,1.26383063,43763.0,43758.0,0.02426235]
[1704139993907,1.26383063,43763.0,43759.0,0.01374991]
[1704139994541,1.26383063,43763.0,43758.0,0.02426235]
[1704139994758,1.26383063,43763.0,43760.0,0.01373413]
[1704139994968,1.27183063,43763.0,43759.0,0.01374991]
[1704139995208,1.27183063,43763.0,43761.0,0.01371836]
[1704139995467,1.27183063,43763.0,43760.0,0.01373413]
[1704139995704,1.27183063,43763.0,43762.0,0.01370259]
[1704139995705,1.28083063,43763.0,43762.0,0.01370259]
[1704139995943,1.28083063,43763.0,43761.0,0.01371836]
[1704139996184,1.26383063,43763.0,43762.0,0.01370259]
[1704139996670,1.28083063,43763.0,43762.0,0.01370259]
[1704139996909,1.27283063,43763.0,43762.0,0.01370259]
[1704139997145,1.27183063,43763.0,43762.0,0.01370259]
[1704139997580,1.27283063,43763.0,43762.0,0.01470259]
[1704139997793,1.28083063,43763.0,43762.0,0.01570259]
[1704139998006,1.28083063,43763.0,43762.0,0.40557894]
[1704140001200,1.28083063,43763.0,43762.0,0.70557894]
[1704140003306,1.28083063,43763.0,43762.0,0.31570259]
[1704140003509,1.28083063,43763.0,43762.0,0.03996494]
[1704140003707,1.28083063,43763.0,43762.0,0.33996494]
[1704140004747,1.28083063,43763.0,43762.0,0.03996494]
[1704140007876,0.04358007,43778.0,43777.0,0.5]
[1704140008075,0.13628313,43783.0,43777.0,0.5]
[1704140008076,1.43907563,43789.0,43783.0,0.22426235]
[1704140008262,1.43907563,43789.0,43783.0,0.25621711]
[1704140008490,1.43907563,43789.0,43783.0,0.38970035]
[1704140008491,0.11534421,43784.0,43783.0,0.38970035]
[1704140008682,0.11534421,43784.0,43783.0,0.32426235]
[1704140008914,1.43907563,43789.0,43784.0,0.11316206]
[1704140009305,1.43907563,43789.0,43784.0,0.37064152]
[1704140009474,1.43907563,43789.0,43787.0,0.02426235]
[1704140009711,1.43907563,43789.0,43785.0,0.02426235]
[1704140009909,1.43907563,43789.0,43784.0,0.11316206]
[1704140010121,0.0613,43788.0,43786.0,0.02426235]
[1704140010664,0.0573,43788.0,43786.0,0.02426235]
[1704140010896,0.0573,43788.0,43784.0,0.11316206]
[1704140011122,0.0573,43788.0,43786.0,0.02426235]
[1704140012113,0.0613,43788.0,43786.0,0.02426235]
[1704140012630,0.0265,43791.0,43790.0,3.56262437]
[1704140012879,0.0255,43791.0,43790.0,3.58688672]
[1704140015594,0.0335,43791.0,43790.0,3.58788672]
[1704140015821,0.0335,43791.0,43790.0,3.56362437]
[1704140016073,0.0255,43791.0,43790.0,3.56262437]
[1704140017276,0.0255,43791.0,43790.0,3.274686]
[1704140017424,0.43445476,43791.0,43790.0,3.274686]
[1704140017427,0.58503476,43791.0,43790.0,3.274686]
[1704140017430,0.96240576,43791.0,43790.0,3.274686]
[1704140017434,0.26071711,43791.0,43790.0,3.274686]
[1704140017733,0.43645476,43791.0,43790.0,3.274686]
[1704140017925,0.0275,43791.0,43790.0,3.274686]
[1704140018170,0.0255,43791.0,43790.0,3.274686]
[1704140018468,0.0255,43791.0,43790.0,3.53216546]
[1704140018700,0.0415,43791.0,43790.0,4.22154546]
[1704140018917,0.0415,43791.0,43790.0,4.26494546]
[1704140019151,0.0255,43791.0,43790.0,4.19754546]
[1704140019363,0.0255,43791.0,43790.0,4.21254546]
[1704140019574,0.0415,43791.0,43790.0,3.97532835]
[1704140019809,0.0265,43794.0,43793.0,0.02426235]
[1704140020030,0.0265,43794.0,43792.0,0.02426235]
[1704140021132,0.0265,43794.0,43790.0,3.286686]
[1704140021347,0.0365,43794.0,43790.0,3.274686]
[1704140021569,0.0265,43794.0,43790.0,3.294686]
[1704140021803,0.001,43791.0,43790.0,3.30794835]
[1704140022016,0.0275,43794.0,43790.0,3.29894835]
[1704140022244,0.0265,43794.0,43792.0,0.02426235]
[1704140022673,0.0445,43794.0,43792.0,0.02426235]
[1704140022897,0.0445,43794.0,43790.0,3.30094835]
[1704140023112,0.0445,43794.0,43790.0,3.276686]
[1704140023320,0.0265,43794.0,43790.0,3.274686]
[1704140023756,0.0275,43794.0,43790.0,3.275686]
[1704140024707,0.0275,43794.0,43790.0,3.276686]
[1704140024929,0.0405,43794.0,43790.0,3.275686]
[1704140025142,0.0415,43794.0,43790.0,3.275686]
[1704140025358,0.0405,43794.0,43790.0,3.275686]
[1704140025784,0.0555,43794.0,43790.0,3.276686]
[1704140026235,0.0275,43794.0,43790.0,3.275686]
[1704140026433,0.0275,43794.0,43790.0,3.276453]
[1704140026685,0.0415,43794.0,43790.0,3.27622]
[1704140027772,0.07573765,43791.0,43790.0,3.27622]
[1704140028457,0.07573765,43791.0,43790.0,3.27522]
[1704140029339,0.07673765,43791.0,43790.0,3.27522]
[1704140029565,0.07673765,43791.0,43790.0,3.27622]
[1704140030016,0.08673765,43791.0,43790.0,3.27622]
[1704140030235,0.001,43791.0,43790.0,3.27622]
[1704140035692,0.87532576,43791.0,43790.0,3.27622]
[1704140035891,0.88532576,43791.0,43790.0,3.27622]
[1704140036563,0.9395971,43791.0,43790.0,3.27622]
[1704140036987,0.88532576,43791.0,43790.0,3.27622]
[1704140037200,0.9959371,43791.0,43790.0,3.27622]
[1704140037649,1.99817153,43791.0,43790.0,2.91622697]
[1704140038097,1.90943153,43791.0,43790.0,2.91622697]
[1704140038315,1.99513153,43791.0,43790.0,2.91622697]
[1704140038536,1.99513153,43791.0,43790.0,2.91422697]
[1704140038537,1.89843153,43791.0,43790.0,2.91422697]
[1704140038756,1.99539153,43791.0,43790.0,2.48420694]
[1704140038969,2.01839153,43791.0,43790.0,2.48420694]
[1704140039186,2.83187107,43791.0,43790.0,2.48420694]
[1704140039458,2.8101381,43791.0,43790.0,2.48420694]
[1704140039674,2.93639153,43791.0,43790.0,2.48420694]
[1704140039902,3.00757462,43791.0,43790.0,2.48420694]
[1704140040344,3.01657462,43791.0,43790.0,2.48620694]
[1704140040557,3.62036812,43791.0,43790.0,2.48420694]
[1704140040768,3.62936812,43791.0,43790.0,2.46590096]
[1704140040984,3.78206812,43791.0,43790.0,1.24600056]
[1704140041203,3.78206812,43791.0,43784.0,0.11316206]
[1704140041204,0.28573765,43785.0,43784.0,0.11316206]
[1704140041423,2.20695362,43785.0,43784.0,0.11316206]
[1704140041648,2.20695362,43785.0,43769.0,0.001]
[1704140041650,0.28573765,43770.0,43769.0,0.001]
[1704140041903,0.93835657,43770.0,43769.0,0.001]
[1704140042135,1.56294597,43770.0,43769.0,0.001]
[1704140042356,1.71535897,43770.0,43769.0,0.001]
[1704140042564,1.76559524,43770.0,43769.0,0.001]
[1704140042775,1.76559524,43770.0,43759.0,0.05]
[1704140042776,0.27573765,43760.0,43759.0,0.05]
[1704140043016,0.50895476,43760.0,43759.0,0.05]
[1704140044127,0.50895476,43760.0,43751.0,0.02426235]
[1704140044128,0.07573765,43759.0,43751.0,0.02426235]
[1704140044350,0.30895476,43759.0,43751.0,0.02426235]
[1704140045225,0.23321711,43759.0,43751.0,0.02426235]
[1704140045429,0.24021711,43759.0,43755.0,0.00061774]
[1704140045582,0.24121711,43759.0,43755.0,0.00061774]
[1704140045790,0.31695476,43759.0,43751.0,0.02526235]
[1704140045995,0.31695476,43759.0,43751.0,0.001]
[1704140046614,0.07573765,43757.0,43751.0,0.001]
[1704140046814,0.30895476,43757.0,43749.0,0.3]
[1704140047021,0.30895476,43757.0,43746.0,0.02915]
[1704140047022,0.27573765,43752.0,43751.0,0.001]
[1704140047227,0.51833702,43752.0,43751.0,0.001]
[1704140047433,0.51833702,43752.0,43751.0,0.002]
[1704140047637,0.56973476,43752.0,43751.0,0.002]
[1704140047885,0.08511991,43748.0,43746.0,0.02915]
[1704140048089,0.30895476,43748.0,43746.0,0.02915]
[1704140048261,0.00938226,43747.0,43746.0,0.02915]
[1704140048952,0.35701476,43748.0,43746.0,0.02915]
[1704140049156,0.30895476,43748.0,43746.0,0.02915]
[1704140049607,0.23321711,43748.0,43746.0,0.02915]
[1704140049769,0.30895476,43748.0,43746.0,0.02915]
[1704140050252,0.00938226,43747.0,43746.0,0.03015]
[1704140050673,0.00938226,43747.0,43746.0,0.03215]
[1704140050889,0.00938226,43747.0,43746.0,0.03015]
[1704140051302,0.00938226,43747.0,43746.0,0.03115]
[1704140051303,0.24259937,43747.0,43746.0,0.03115]
[1704140051506,0.31833702,43747.0,43746.0,0.02915]
[1704140051719,0.36273702,43747.0,43746.0,0.03115]
[1704140051927,0.33633702,43747.0,43746.0,0.03315]
[1704140052159,0.60203702,43747.0,43746.0,0.03315]
[1704140052363,0.96777602,43747.0,43746.0,0.03315]
[1704140053227,0.96777602,43747.0,43746.0,0.03115]
[1704140053228,0.99305602,43747.0,43746.0,0.03115]
[1704140053435,1.12763602,43747.0,43746.0,0.03315]
[1704140053645,1.02149602,43747.0,43746.0,0.03215]
[1704140053856,1.03449602,43747.0,43746.0,0.03215]
[1704140054072,1.05249602,43747.0,43746.0,0.03415]
[1704140054282,1.03449602,43747.0,43746.0,0.03215]
[1704140054498,1.19484351,43747.0,43746.0,0.02915]
[1704140054773,1.21284351,43747.0,43746.0,0.03315]
[1704140054986,1.65532786,43747.0,43746.0,0.03115]
[1704140055198,0.28511991,43741.0,43740.0,0.0022]
[1704140055442,0.88412602,43741.0,43740.0,0.0022]
[1704140055896,0.96692602,43741.0,43740.0,0.0022]
[1704140056317,1.08553568,43741.0,43740.0,0.0022]
[1704140056524,1.01553351,43741.0,43740.0,0.0022]
[1704140056994,1.01553351,43741.0,43740.0,0.0042]
[1704140056995,1.03353351,43741.0,43740.0,0.0042]
[1704140057429,0.92012602,43741.0,43740.0,0.0062]
[1704140058997,0.97808602,43741.0,43740.0,0.0062]
[1704140059439,0.17573765,43736.0,43730.0,0.05]
[1704140059648,0.23321711,43735.0,43730.0,0.05]
[1704140060301,0.23321711,43735.0,43728.0,0.29966235]
[1704140060514,0.23321711,43735.0,43728.0,0.02426235]
[1704140060932,0.23321711,43735.0,43730.0,0.001]
[1704140061145,0.24521711,43735.0,43730.0,0.002]
[1704140061358,0.23321711,43735.0,43728.0,0.02426235]
[1704140061562,0.23321711,43735.0,43728.0,0.02526235]
[1704140061785,0.24521711,43735.0,43728.0,0.02526235]
[1704140062688,0.25721711,43735.0,43728.0,0.001]
[1704140062900,0.25721711,43735.0,43728.0,0.02526235]
[1704140063322,0.25721711,43735.0,43732.0,0.00061774]
[1704140064160,0.24521711,43735.0,43731.0,0.00061774]
[1704140064374,0.24521711,43735.0,43728.0,0.02526235]
[1704140064582,0.24521711,43735.0,43731.0,0.00061774]
[1704140065013,0.23321711,43735.0,43731.0,0.00061774]
[1704140065224,0.24521711,43735.0,43731.0,0.00061774]
[1704140065823,0.24521711,43735.0,43732.0,0.00061774]
[1704140066241,0.25721711,43735.0,43732.0,0.00161774]
[1704140066650,0.24521711,43735.0,43732.0,0.00061774]
[1704140066803,0.012,43735.0,43732.0,0.00061774]
[1704140067005,0.18511991,43738.0,43732.0,0.00061774]
[1704140067204,0.012,43735.0,43732.0,0.00061774]
[1704140067412,0.024,43735.0,43732.0,0.00161774]
[1704140067632,0.012,43735.0,43732.0,0.00161774]
[1704140068049,0.024,43735.0,43732.0,0.00261774]
[1704140069511,0.024,43735.0,43732.0,0.02688009]
[1704140070148,0.024,43735.0,43732.0,0.02626235]
[1704140070358,0.024,43735.0,43732.0,0.02688009]
[1704140070983,0.024,43735.0,43732.0,0.002]
[1704140071183,0.03338226,43735.0,43732.0,0.002]
[1704140071384,0.024,43735.0,43732.0,0.002]
[1704140071604,0.03338226,43735.0,43732.0,0.002]
[1704140072643,0.04704,43737.0,43732.0,0.002]
[1704140072865,0.38025711,43736.0,43732.0,0.002]
[1704140073072,0.50078033,43736.0,43732.0,0.002]
[1704140073297,0.05112,43735.0,43732.0,0.002]
[1704140073516,0.28433711,43735.0,43732.0,0.001]
[1704140073731,0.28433711,43735.0,43728.0,0.06088009]
[1704140073951,0.28817711,43734.0,43732.0,0.002]
[1704140074396,0.45574033,43734.0,43732.0,0.002]
[1704140074626,0.69697591,43733.0,43732.0,0.001]
[1704140074842,0.23911991,43728.0,43722.0,0.05]
[1704140075107,0.23911991,43728.0,43719.0,0.06088009]
[1704140075108,0.23321711,43727.0,43719.0,0.06088009]
[1704140075538,0.40078033,43727.0,43719.0,0.06088009]
[1704140076403,0.40878033,43727.0,43719.0,0.06188009]
[1704140076820,0.17556322,43727.0,43720.0,0.06088009]
[1704140077023,0.008,43727.0,43721.0,0.06088009]
[1704140077242,0.008,43727.0,43723.0,0.06088009]
[1704140077451,0.016,43727.0,43723.0,0.06088009]
[1704140077677,0.008,43727.0,43723.0,0.06088009]
[1704140077892,0.16756322,43731.0,43723.0,0.06088009]
[1704140078109,0.23321711,43730.0,43723.0,0.06088009]
[1704140078312,0.008,43727.0,43723.0,0.06188009]
[1704140078954,0.23321711,43730.0,43723.0,0.06088009]
[1704140079159,0.008,43727.0,43723.0,0.06188009]
[1704140079383,0.16756322,43729.0,43723.0,0.06188009]
[1704140079590,0.008,43727.0,43723.0,0.002]
[1704140080228,0.008,43727.0,43723.0,0.06288009]
[1704140080452,0.008,43727.0,43723.0,0.002]
[1704140081092,0.04554,43726.0,43723.0,0.001]
[1704140081546,0.04554,43726.0,43723.0,0.002]
[1704140081547,0.21310322,43726.0,43723.0,0.002]
[1704140081973,0.27953711,43725.0,43723.0,0.001]
[1704140082173,0.27953711,43725.0,43723.0,0.002]
[1704140082174,0.37953711,43725.0,43723.0,0.002]
[1704140082383,0.37953711,43725.0,43720.0,0.52664]
[1704140082384,0.05082,43724.0,43720.0,0.52664]
[1704140082603,0.34994995,43724.0,43720.0,0.52664]
[1704140083018,0.35585275,43724.0,43723.0,0.002]
[1704140083229,0.60505091,43724.0,43723.0,0.001]
[1704140083436,0.74314375,43724.0,43723.0,0.001]
[1704140083839,0.74014375,43724.0,43723.0,0.001]
[1704140084043,0.74314375,43724.0,43723.0,0.001]
[1704140084245,0.23911991,43721.0,43720.0,0.52664]
[1704140084449,1.13829302,43721.0,43720.0,0.52664]
[1704140084641,1.32776586,43721.0,43720.0,0.52664]
[1704140085049,1.32776586,43721.0,43720.0,0.16611877]
[1704140085050,1.44844767,43721.0,43720.0,0.16611877]
[1704140085261,2.23024803,43721.0,43720.0,0.16611877]
[1704140085462,2.26535594,43721.0,43720.0,0.16711877]
[1704140085915,0.23911991,43716.0,43715.0,0.02915]
[1704140086111,1.27459829,43716.0,43715.0,0.02915]
[1704140086263,1.65446945,43716.0,43715.0,0.02915]
[1704140087116,1.67246945,43716.0,43715.0,0.03115]
[1704140087471,1.35679912,43716.0,43715.0,0.028622]
[1704140087897,1.67251345,43716.0,43715.0,0.029622]
[1704140088104,1.56354992,43716.0,43715.0,0.029622]
[1704140088314,1.56354992,43716.0,43715.0,0.028622]
[1704140088315,1.68181319,43716.0,43715.0,0.028622]
[1704140088522,1.56354992,43716.0,43715.0,0.029622]
[1704140088659,1.56354992,43716.0,43715.0,0.031622]
[1704140088873,1.69050814,43716.0,43715.0,0.031622]
[1704140089072,1.69981319,43716.0,43715.0,0.029622]
[1704140089273,1.56354992,43716.0,43715.0,0.029622]
[1704140089454,0.2,43712.0,43698.0,0.20904073]
[1704140089665,0.59926411,43711.0,43698.0,0.05]
[1704140089881,0.65158411,43711.0,43698.0,0.05]
[1704140090099,0.412914,43710.0,43698.0,0.05]
[1704140090302,0.59927811,43709.0,43700.0,0.01]
[1704140090507,0.64373811,43709.0,43700.0,0.01]
[1704140090732,0.1,43707.0,43696.0,0.02915]
[1704140090930,0.1,43707.0,43696.0,0.03915]
[1704140090931,0.59930011,43706.0,43696.0,0.03915]
[1704140091138,0.59930011,43706.0,43700.0,0.001]
[1704140091553,0.366083,43706.0,43700.0,0.001]
[1704140091760,0.366083,43706.0,43701.0,0.01033992]
[1704140091985,0.3,43709.0,43705.0,0.01]
[1704140091986,0.0534,43709.0,43705.0,0.01]
[1704140092189,0.09366,43715.0,43702.0,0.01032805]
[1704140092190,0.4093,43714.0,43702.0,0.01032805]
[1704140092400,0.59923711,43714.0,43705.0,0.01]
[1704140092617,0.014,43706.0,43705.0,0.01]
[1704140093235,0.014,43706.0,43705.0,0.02029247]
[1704140093434,0.014,43706.0,43705.0,0.01]
[1704140093646,0.014,43706.0,43705.0,0.01029247]
[1704140093857,0.021,43706.0,43705.0,0.011]
[1704140094059,0.007,43706.0,43705.0,0.02129247]
[1704140094528,0.54221711,43706.0,43705.0,0.01129247]
[1704140094716,0.90829911,43706.0,43705.0,0.01129247]
[1704140094928,0.89929911,43706.0,43705.0,0.01029247]
[1704140095159,0.1,43705.0,43697.0,0.02915]
[1704140095371,0.23321711,43704.0,43697.0,0.02915]
[1704140096685,0.24821711,43704.0,43697.0,0.03015]
[1704140097747,0.1,43703.0,43697.0,0.03015]
[1704140097953,0.23321711,43702.0,43697.0,0.02915]
[1704140098161,0.1,43699.0,43697.0,0.03115]
[1704140098382,0.69936611,43698.0,43697.0,0.03115]
[1704140098594,0.69936611,43698.0,43697.0,0.02915]
[1704140098814,0.89936611,43698.0,43697.0,0.03115]
[1704140099022,0.97775595,43698.0,43697.0,0.03115]
[1704140099237,1.03067595,43698.0,43697.0,0.03015]
[1704140099458,1.03067595,43698.0,43697.0,0.03115]
[1704140099459,1.03367595,43698.0,43697.0,0.03115]
[1704140099662,0.90236611,43698.0,43697.0,0.03115]
[1704140099872,0.90236611,43698.0,43697.0,0.02715]
[1704140100491,0.89936611,43698.0,43697.0,0.02515]
[1704140101145,0.95128611,43698.0,43697.0,0.02615]
[1704140101369,0.90436611,43698.0,43697.0,0.02615]
[1704140101612,0.91936611,43698.0,43697.0,0.02515]
[1704140101832,0.89936611,43698.0,43697.0,0.02515]
[1704140102038,0.96436611,43698.0,43697.0,0.02615]
[1704140102275,1.05775595,43698.0,43697.0,0.02615]
[1704140102491,1.00510611,43698.0,43697.0,0.02615]
[1704140103117,1.11520971,43698.0,43697.0,0.02615]
[1704140103341,1.39384611,43698.0,43697.0,0.02615]
[1704140103562,1.30510611,43698.0,43697.0,0.02615]
[1704140103996,1.28810611,43698.0,43697.0,0.02515]
[1704140104229,1.53716246,43698.0,43697.0,0.02515]
[1704140104443,1.58823581,43698.0,43697.0,0.02515]
[1704140104666,1.58823581,43698.0,43693.0,0.02915]
[1704140104667,0.3,43694.0,43693.0,0.02915]
[1704140104895,0.318,43698.0,43693.0,0.02915]
[1704140105112,0.89937511,43697.0,43693.0,0.02915]
[1704140105321,0.318,43698.0,43693.0,0.02915]
[1704140105322,0.018,43698.0,43693.0,0.023804]
[1704140105567,0.036,43698.0,43693.0,0.023804]
[1704140105776,0.018,43698.0,43693.0,0.023804]
[1704140106234,0.036,43698.0,43693.0,0.033804]
[1704140106452,0.366087,43706.0,43693.0,0.033804]
[1704140106659,0.33384,43709.0,43694.0,0.023]
[1704140106660,0.1,43698.0,43694.0,0.023]
[1704140106936,0.1,43698.0,43694.0,0.03163248]
[1704140107156,0.1,43697.0,43694.0,0.03163248]
[1704140107381,0.1,43700.0,43694.0,0.26484959]
[1704140107601,0.1,43701.0,43694.0,0.26484959]
[1704140107824,0.015,43698.0,43694.0,0.26484959]
[1704140108254,0.1,43702.0,43695.0,0.23321711]
[1704140108466,0.001,43697.0,43696.0,0.023]
[1704140108684,0.001,43697.0,43696.0,0.62238311]
[1704140108907,0.001,43697.0,43696.0,0.99449292]
[1704140109120,0.001,43697.0,43696.0,0.93101292]
[1704140109344,0.001,43697.0,43696.0,0.97805292]
[1704140109558,0.001,43697.0,43696.0,0.93101292]
[1704140109782,0.1,43706.0,43696.0,0.97751292]
[1704140110015,0.001,43698.0,43697.0,0.99265596]
[1704140110241,0.001,43698.0,43697.0,0.96856911]
[1704140110485,6e-05,43700.0,43697.0,0.93309056]
[1704140110720,6e-05,43700.0,43698.0,0.023]
[1704140110968,6e-05,43700.0,43699.0,0.23321711]
[1704140111186,6e-05,43700.0,43699.0,0.26691483]
[1704140112107,0.00106,43700.0,43699.0,0.26691483]
[1704140112917,0.00106,43700.0,43699.0,0.03369772]
[1704140113131,0.00206,43700.0,43699.0,0.03369772]
[1704140113737,0.00106,43700.0,43699.0,0.03369772]
[1704140113948,0.00106,43700.0,43699.0,0.26991483]
[1704140114130,0.00106,43700.0,43699.0,0.63605583]
[1704140114330,0.00206,43700.0,43699.0,0.98969583]
[1704140114876,0.00106,43700.0,43699.0,1.59227061]
[1704140115107,6e-05,43700.0,43699.0,1.59227061]
[1704140115314,0.00206,43700.0,43699.0,1.59727061]
[1704140115479,6e-05,43700.0,43699.0,1.59227061]
[1704140115910,6e-05,43700.0,43699.0,1.60727061]
[1704140115911,0.00206,43700.0,43699.0,1.60727061]
[1704140116106,0.00206,43700.0,43699.0,1.66545061]
[1704140116311,0.00406,43700.0,43699.0,1.67190749]
[1704140116512,0.00406,43700.0,43699.0,1.67690749]
[1704140116847,0.00206,43700.0,43699.0,1.77390749]
[1704140117050,0.00206,43700.0,43699.0,1.67690749]
[1704140117230,0.00406,43700.0,43699.0,1.67690749]
[1704140117449,0.00406,43700.0,43699.0,1.77690749]
[1704140117691,0.00206,43700.0,43699.0,1.71072749]
[1704140117901,0.00206,43700.0,43699.0,1.61372749]
[1704140118113,0.00206,43700.0,43699.0,1.60872749]
[1704140118542,0.00406,43700.0,43699.0,1.61372749]
[1704140118759,0.00206,43700.0,43699.0,1.59872749]
[1704140118968,0.10406,43700.0,43699.0,0.0221546]
[1704140119205,0.10206,43700.0,43699.0,0.01349276]
[1704140119429,6e-05,43700.0,43699.0,0.23321711]
[1704140119682,0.00206,43700.0,43699.0,0.24121711]
[1704140119866,0.00206,43700.0,43699.0,0.24468682]
[1704140120078,0.00206,43700.0,43699.0,0.24668682]
[1704140120306,0.00206,43700.0,43699.0,0.24968682]
[1704140120511,0.00406,43700.0,43699.0,0.24968682]
[1704140120715,0.00406,43700.0,43699.0,0.27268682]
[1704140121364,0.00206,43700.0,43699.0,0.26768682]
[1704140122019,0.00406,43700.0,43699.0,0.63882782]
[1704140122258,0.00406,43700.0,43699.0,1.65251656]
[1704140122682,0.00406,43700.0,43699.0,0.93882782]
[1704140122912,0.00406,43700.0,43699.0,1.59809698]
[1704140123783,0.00406,43700.0,43699.0,1.65893698]
[1704140123994,0.00406,43700.0,43699.0,1.59309698]
[1704140124424,0.00206,43700.0,43699.0,1.59009698]
[1704140124627,0.00206,43700.0,43699.0,1.60609698]
[1704140124849,0.00206,43700.0,43699.0,1.60109698]
[1704140125060,0.00406,43700.0,43699.0,1.60309698]
[1704140125509,0.00206,43700.0,43699.0,1.58509698]
[1704140125744,0.00406,43700.0,43699.0,1.60309698]
[1704140126271,0.00406,43700.0,43699.0,1.65883698]
[1704140127223,0.00606,43700.0,43699.0,1.67483698]
[1704140127919,0.00606,43700.0,43699.0,1.61909698]
[1704140128404,0.00606,43700.0,43699.0,1.64711035]
[1704140128623,0.00406,43700.0,43699.0,1.62911035]
[1704140128872,0.00606,43700.0,43699.0,1.64711035]
[1704140129521,6e-05,43700.0,43699.0,1.61311035]
[1704140129736,6e-05,43700.0,43699.0,1.63111035]
[1704140129941,0.00406,43700.0,43699.0,1.64911035]
[1704140130376,0.00206,43700.0,43699.0,1.63111035]
[1704140130589,0.00406,43700.0,43699.0,1.64911035]
[1704140131015,6e-05,43700.0,43699.0,1.61311035]
[1704140131438,6e-05,43700.0,43699.0,1.64911035]
[1704140131439,0.00206,43700.0,43699.0,1.64911035]
[1704140131653,0.00406,43700.0,43699.0,1.63111035]
[1704140132080,0.00606,43700.0,43699.0,1.64911035]
[1704140132932,0.03606,43708.0,43699.0,1.64911035]
[1704140133172,0.03606,43708.0,43700.0,1.44168601]